[Event "Titled Tuesday Blitz May 9 Late 2023"]
[White "Taboas Rodriguez, Daniel"]
[Black "merinasian"]
[WhiteFideId "2208466"]
[WhiteElo "2365"]
[BlackElo "2434"]
[Result "1-0"]
[Round "04"]
[TimeControl "180+2"]
[Date "2023.05.09"]
[WhiteClock "0:01:08"]
[BlackClock "0:00:49"]

1. d4 {[%clk 0:02:58]}  Nf6 {[%clk 0:02:59]} 2. Nf3 {[%clk 0:02:57]}  e6 {[%clk 0:02:59]} 3. c4 {[%clk 0:02:57]}  b6 {[%clk 0:02:58]} 4. Nc3 {[%clk 0:02:57]}  Bb7 {[%clk 0:02:59]} 5. Bg5 {[%clk 0:02:57]}  h6 {[%clk 0:02:58]} 6. Bh4 {[%clk 0:02:57]}  Bb4 {[%clk 0:02:58]} 7. Nd2 {[%clk 0:02:56]}  Bxc3 {[%clk 0:02:49]} 8. bxc3 {[%clk 0:02:56]}  d6 {[%clk 0:02:49]} 9. f3 {[%clk 0:02:53]}  Nbd7 {[%clk 0:02:49]} 10. e4 {[%clk 0:02:53]}  e5 {[%clk 0:02:47]} 11. Bd3 {[%clk 0:02:53]}  c5 {[%clk 0:02:39]} 12. d5 {[%clk 0:02:44]}  g5 {[%clk 0:02:36]} 13. Bf2 {[%clk 0:02:44]}  Nf8 {[%clk 0:02:37]} 14. Nf1 {[%clk 0:02:44]}  Ng6 {[%clk 0:02:37]} 15. Ne3 {[%clk 0:02:43]}  Bc8 {[%clk 0:02:36]} 16. g3 {[%clk 0:02:43]}  Kf8 {[%clk 0:02:23]} 17. a4 {[%clk 0:02:43]}  Bd7 {[%clk 0:02:14]} 18. a5 {[%clk 0:02:42]}  bxa5 {[%clk 0:02:14]} 19. O-O {[%clk 0:02:39]}  Kg7 {[%clk 0:02:13]} 20. Ra3 {[%clk 0:02:33]}  Nh5 {[%clk 0:02:09]} 21. Qa1 {[%clk 0:02:28]}  a4 {[%clk 0:02:01]} 22. Bc2 {[%clk 0:02:27]}  Qf6 {[%clk 0:01:58]} 23. Ng4 {[%clk 0:02:18]}  Qxf3 {[%clk 0:01:37]} 24. Bd1 {[%clk 0:01:54]}  Qxe4 {[%clk 0:01:37]} 25. Re1 {[%clk 0:01:42]}  Qxc4 {[%clk 0:01:36]} 26. Ne3 {[%clk 0:01:40]}  Qe4 {[%clk 0:01:22]} 27. Bxh5 {[%clk 0:01:37]}  Bh3 {[%clk 0:01:16]} 28. Qb1 {[%clk 0:01:32]}  Qxb1 {[%clk 0:01:10]} 29. Rxb1 {[%clk 0:01:33]}  Rab8 {[%clk 0:01:06]} 30. Rba1 {[%clk 0:01:31]}  Bd7 {[%clk 0:01:06]} 31. Bd1 {[%clk 0:01:30]}  f5 {[%clk 0:01:06]} 32. Bxa4 {[%clk 0:01:29]}  Bxa4 {[%clk 0:01:06]} 33. Rxa4 {[%clk 0:01:28]}  f4 {[%clk 0:01:06]} 34. Nf5+ {[%clk 0:01:28]}  Kf6 {[%clk 0:01:06]} 35. Nxd6 {[%clk 0:01:29]}  Rhd8 {[%clk 0:01:01]} 36. Bxc5 {[%clk 0:01:25]}  Rb3 {[%clk 0:00:55]} 37. Rxa7 {[%clk 0:01:22]}  e4 {[%clk 0:00:55]} 38. Nxe4+ {[%clk 0:01:18]}  Ke5 {[%clk 0:00:54]} 39. Re1 {[%clk 0:01:09]}  Rxd5 {[%clk 0:00:49]} 40. Nd2+ {[%clk 0:01:08]} 1-0


[Site "https://www.chess.com"]

[Event "Titled Tuesday Blitz May 9 Late 2023"]
[White "Urbina Perez, Juan Antonio"]
[Black "ATM622"]
[WhiteFideId "2217368"]
[WhiteElo "2197"]
[BlackElo "2576"]
[Result "0-1"]
[Round "04"]
[TimeControl "180+2"]
[Date "2023.05.09"]
[WhiteClock "0:00:19"]
[BlackClock "0:01:11"]

1. e4 {[%clk 0:03:00]}  c6 {[%clk 0:02:59]} 2. Nf3 {[%clk 0:02:59]}  d5 {[%clk 0:02:59]} 3. d3 {[%clk 0:03:00]}  dxe4 {[%clk 0:02:59]} 4. dxe4 {[%clk 0:03:00]}  Qxd1+ {[%clk 0:02:59]} 5. Kxd1 {[%clk 0:03:01]}  Nf6 {[%clk 0:02:59]} 6. Nfd2 {[%clk 0:03:00]}  Ng4 {[%clk 0:02:54]} 7. Ke1 {[%clk 0:02:57]}  Nd7 {[%clk 0:02:52]} 8. Nb3 {[%clk 0:02:49]}  a5 {[%clk 0:02:49]} 9. a4 {[%clk 0:02:48]}  g6 {[%clk 0:02:42]} 10. f3 {[%clk 0:02:48]}  Nge5 {[%clk 0:02:42]} 11. c3 {[%clk 0:02:47]}  Bg7 {[%clk 0:02:37]} 12. Be3 {[%clk 0:02:46]}  O-O {[%clk 0:02:32]} 13. N1d2 {[%clk 0:02:46]}  f5 {[%clk 0:02:28]} 14. exf5 {[%clk 0:02:35]}  gxf5 {[%clk 0:02:27]} 15. Nc4 {[%clk 0:02:33]}  Nxc4 {[%clk 0:02:19]} 16. Bxc4+ {[%clk 0:02:34]}  Kh8 {[%clk 0:02:20]} 17. Nc5 {[%clk 0:02:28]}  Ne5 {[%clk 0:02:18]} 18. Be6 {[%clk 0:02:23]}  b6 {[%clk 0:02:11]} 19. Bxc8 {[%clk 0:02:17]}  Rfxc8 {[%clk 0:02:11]} 20. Ne6 {[%clk 0:02:09]}  Bf6 {[%clk 0:02:09]} 21. Rd1 {[%clk 0:01:56]}  b5 {[%clk 0:02:06]} 22. Bd4 {[%clk 0:01:46]}  bxa4 {[%clk 0:02:02]} 23. Kf2 {[%clk 0:01:38]}  Rab8 {[%clk 0:02:01]} 24. Rd2 {[%clk 0:01:33]}  Rxb2 {[%clk 0:01:58]} 25. Rxb2 {[%clk 0:01:27]}  Nd3+ {[%clk 0:01:58]} 26. Ke3 {[%clk 0:01:26]}  Nxb2 {[%clk 0:01:59]} 27. Bxf6+ {[%clk 0:01:20]}  exf6 {[%clk 0:01:58]} 28. Nc5 {[%clk 0:01:21]}  a3 {[%clk 0:01:54]} 29. Ra1 {[%clk 0:01:18]}  Re8+ {[%clk 0:01:51]} 30. Kd4 {[%clk 0:01:07]}  Re2 {[%clk 0:01:48]} 31. Nb3 {[%clk 0:00:50]}  Rxg2 {[%clk 0:01:46]} 32. Rxa3 {[%clk 0:00:49]}  Rxh2 {[%clk 0:01:43]} 33. Rxa5 {[%clk 0:00:47]}  h5 {[%clk 0:01:38]} 34. Rxf5 {[%clk 0:00:46]}  Kg7 {[%clk 0:01:35]} 35. Na5 {[%clk 0:00:46]}  Kg6 {[%clk 0:01:31]} 36. Rf4 {[%clk 0:00:45]}  h4 {[%clk 0:01:30]} 37. Nxc6 {[%clk 0:00:43]}  h3 {[%clk 0:01:29]} 38. Rg4+ {[%clk 0:00:39]}  Kf7 {[%clk 0:01:27]} 39. Rh4 {[%clk 0:00:37]}  Nd1 {[%clk 0:01:26]} 40. Kd3 {[%clk 0:00:32]}  Rg2 {[%clk 0:01:21]} 41. Nd4 {[%clk 0:00:29]}  h2 {[%clk 0:01:19]} 42. Ne2 {[%clk 0:00:21]}  h1=Q {[%clk 0:01:15]} 43. Rxh1 {[%clk 0:00:19]}  Nf2+ {[%clk 0:01:16]} 44. Ke3 {[%clk 0:00:19]}  Nxh1 {[%clk 0:01:17]} 45. Nf4 {[%clk 0:00:20]}  Rc2 {[%clk 0:01:16]} 46. Kd3 {[%clk 0:00:20]}  Rc1 {[%clk 0:01:15]} 47. Kd2 {[%clk 0:00:21]}  Ra1 {[%clk 0:01:14]} 48. c4 {[%clk 0:00:21]}  Ng3 {[%clk 0:01:13]} 49. Kd3 {[%clk 0:00:19]}  Nf5 {[%clk 0:01:11]} 0-1


[Site "https://www.chess.com"]

[Event "Titled Tuesday Blitz May 9 Late 2023"]
[White "Richter, Paul"]
[Black "Boder, Jan"]
[WhiteFideId "2046350"]
[BlackFideId "16243226"]
[WhiteElo "2553"]
[BlackElo "2241"]
[Result "1-0"]
[Round "04"]
[TimeControl "180+2"]
[Date "2023.05.09"]
[WhiteClock "0:01:12"]
[BlackClock "0:00:00"]

1. e4 {[%clk 0:03:00]}  e5 {[%clk 0:02:58]} 2. Nf3 {[%clk 0:03:00]}  Nf6 {[%clk 0:02:56]} 3. Nxe5 {[%clk 0:03:00]}  d6 {[%clk 0:02:48]} 4. Nf3 {[%clk 0:03:00]}  Nxe4 {[%clk 0:02:42]} 5. d4 {[%clk 0:03:00]}  d5 {[%clk 0:02:41]} 6. Bd3 {[%clk 0:02:59]}  Bd6 {[%clk 0:02:41]} 7. O-O {[%clk 0:02:56]}  O-O {[%clk 0:02:33]} 8. c4 {[%clk 0:02:55]}  c6 {[%clk 0:02:32]} 9. Nc3 {[%clk 0:02:54]}  Nxc3 {[%clk 0:02:23]} 10. bxc3 {[%clk 0:02:55]}  h6 {[%clk 0:02:24]} 11. h3 {[%clk 0:02:52]}  Nd7 {[%clk 0:02:21]} 12. Re1 {[%clk 0:02:49]}  dxc4 {[%clk 0:02:15]} 13. Bxc4 {[%clk 0:02:49]}  Nb6 {[%clk 0:02:15]} 14. Bb3 {[%clk 0:02:47]}  Bf5 {[%clk 0:02:13]} 15. c4 {[%clk 0:02:30]}  Bc7 {[%clk 0:01:46]} 16. Bb2 {[%clk 0:02:26]}  Qf6 {[%clk 0:01:26]} 17. Qd2 {[%clk 0:02:12]}  Rad8 {[%clk 0:01:23]} 18. d5 {[%clk 0:01:58]}  Qd6 {[%clk 0:01:01]} 19. Qc3 {[%clk 0:01:54]}  f6 {[%clk 0:00:54]} 20. c5 {[%clk 0:01:52]}  Qf4 {[%clk 0:00:32]} 21. d6+ {[%clk 0:01:48]}  Nd5 {[%clk 0:00:24]} 22. dxc7 {[%clk 0:01:43]}  Qxc7 {[%clk 0:00:19]} 23. Rad1 {[%clk 0:01:37]}  Kh8 {[%clk 0:00:18]} 24. Bxd5 {[%clk 0:01:37]}  cxd5 {[%clk 0:00:19]} 25. Nd4 {[%clk 0:01:34]}  Bc8 {[%clk 0:00:17]} 26. Qg3 {[%clk 0:01:30]}  Qa5 {[%clk 0:00:10]} 27. Re7 {[%clk 0:01:27]}  Rg8 {[%clk 0:00:09]} 28. Nf3 {[%clk 0:01:15]}  Qxc5 {[%clk 0:00:08]} 29. Rde1 {[%clk 0:01:13]}  d4 {[%clk 0:00:07]} 30. Qh4 {[%clk 0:01:12]}  d3 {[%clk 0:00:00]} 31. Bxf6 {[%clk 0:01:12]} 1-0


[Site "https://www.chess.com"]

[Event "Titled Tuesday Blitz May 9 Late 2023"]
[White "Avalos Parra, Joao"]
[Black "Tologon tegin, Semetei"]
[WhiteFideId "3402541"]
[BlackFideId "13800574"]
[WhiteElo "2173"]
[BlackElo "2247"]
[Result "0-1"]
[Round "04"]
[TimeControl "180+2"]
[Date "2023.05.09"]
[WhiteClock "0:00:18"]
[BlackClock "0:00:41"]

1. d4 {[%clk 0:03:00]}  d5 {[%clk 0:02:54]} 2. c4 {[%clk 0:03:00]}  e6 {[%clk 0:02:54]} 3. Nf3 {[%clk 0:03:00]}  Nf6 {[%clk 0:02:52]} 4. Nc3 {[%clk 0:03:00]}  Nbd7 {[%clk 0:02:52]} 5. Bf4 {[%clk 0:02:59]}  dxc4 {[%clk 0:02:45]} 6. e3 {[%clk 0:02:59]}  a6 {[%clk 0:02:41]} 7. Bxc4 {[%clk 0:02:59]}  b5 {[%clk 0:02:41]} 8. Bd3 {[%clk 0:03:00]}  Bb7 {[%clk 0:02:41]} 9. O-O {[%clk 0:03:00]}  c5 {[%clk 0:02:41]} 10. b3 {[%clk 0:02:54]}  Rc8 {[%clk 0:02:39]} 11. Rc1 {[%clk 0:02:48]}  cxd4 {[%clk 0:02:39]} 12. exd4 {[%clk 0:02:47]}  Ba3 {[%clk 0:02:39]} 13. Rc2 {[%clk 0:02:46]}  O-O {[%clk 0:02:34]} 14. Ne5 {[%clk 0:02:43]}  Qa5 {[%clk 0:02:13]} 15. Nb1 {[%clk 0:02:33]}  Be7 {[%clk 0:02:08]} 16. h3 {[%clk 0:02:25]}  Nb6 {[%clk 0:01:58]} 17. Bd2 {[%clk 0:02:19]}  Bb4 {[%clk 0:01:57]} 18. Bg5 {[%clk 0:02:17]}  Nbd5 {[%clk 0:01:57]} 19. a3 {[%clk 0:02:13]}  Bxa3 {[%clk 0:01:53]} 20. Ra2 {[%clk 0:01:59]}  b4 {[%clk 0:01:53]} 21. Bc1 {[%clk 0:01:43]}  Nc3 {[%clk 0:01:48]} 22. Nxc3 {[%clk 0:01:38]}  Rxc3 {[%clk 0:01:48]} 23. Bd2 {[%clk 0:01:16]}  Qd5 {[%clk 0:01:44]} 24. f3 {[%clk 0:01:09]}  Qxd4+ {[%clk 0:01:42]} 25. Rf2 {[%clk 0:00:59]}  Qxe5 {[%clk 0:01:39]} 26. Bxc3 {[%clk 0:00:52]}  Qxc3 {[%clk 0:01:40]} 27. Bc4 {[%clk 0:00:45]}  a5 {[%clk 0:01:36]} 28. Rac2 {[%clk 0:00:45]}  Qe5 {[%clk 0:01:35]} 29. Rfe2 {[%clk 0:00:45]}  Qg3 {[%clk 0:01:26]} 30. Qe1 {[%clk 0:00:44]}  Qxe1+ {[%clk 0:01:24]} 31. Rxe1 {[%clk 0:00:45]}  Nd5 {[%clk 0:01:20]} 32. Kf2 {[%clk 0:00:42]}  Rc8 {[%clk 0:01:15]} 33. Rd2 {[%clk 0:00:37]}  Kf8 {[%clk 0:01:13]} 34. h4 {[%clk 0:00:37]}  a4 {[%clk 0:01:04]} 35. Rd4 {[%clk 0:00:28]}  axb3 {[%clk 0:01:02]} 36. Bxb3 {[%clk 0:00:29]}  Rc3 {[%clk 0:01:01]} 37. Ba4 {[%clk 0:00:29]}  Ke7 {[%clk 0:00:59]} 38. h5 {[%clk 0:00:20]}  h6 {[%clk 0:00:58]} 39. Kg3 {[%clk 0:00:20]}  Bc6 {[%clk 0:00:57]} 40. Bxc6 {[%clk 0:00:18]}  Rxc6 {[%clk 0:00:58]} 41. Rxd5 {[%clk 0:00:19]}  Bb2 {[%clk 0:00:51]} 42. Rb5 {[%clk 0:00:18]}  Bc3 {[%clk 0:00:50]} 43. Re4 {[%clk 0:00:16]}  f5 {[%clk 0:00:48]} 44. Rxf5 {[%clk 0:00:14]}  Rb6 {[%clk 0:00:44]} 45. Rc5 {[%clk 0:00:11]}  Kd6 {[%clk 0:00:41]} 46. Rc8 {[%clk 0:00:08]}  Be5+ {[%clk 0:00:40]} 47. f4 {[%clk 0:00:08]}  Bf6 {[%clk 0:00:40]} 48. Re8 {[%clk 0:00:06]}  Kd7 {[%clk 0:00:40]} 49. Ra8 {[%clk 0:00:05]}  b3 {[%clk 0:00:39]} 50. Ra7+ {[%clk 0:00:04]}  Kd6 {[%clk 0:00:40]} 51. Re1 {[%clk 0:00:01]}  b2 {[%clk 0:00:40]} 52. Rd1+ {[%clk 0:00:02]}  Kc6 {[%clk 0:00:40]} 53. Rad7 {[%clk 0:00:02]}  b1=Q {[%clk 0:00:38]} 54. Rxb1 {[%clk 0:00:03]}  Rxb1 {[%clk 0:00:37]} 55. Rd3 {[%clk 0:00:03]}  Rc1 {[%clk 0:00:37]} 56. Kf3 {[%clk 0:00:03]}  Rc3 {[%clk 0:00:37]} 57. Rxc3+ {[%clk 0:00:02]}  Bxc3 {[%clk 0:00:38]} 58. Ke4 {[%clk 0:00:03]}  Kd6 {[%clk 0:00:38]} 59. f5 {[%clk 0:00:04]}  e5 {[%clk 0:00:37]} 60. g4 {[%clk 0:00:04]}  Bd2 {[%clk 0:00:37]} 61. Kd3 {[%clk 0:00:04]}  Bg5 {[%clk 0:00:37]} 62. Ke4 {[%clk 0:00:05]}  Bf6 {[%clk 0:00:37]} 63. Kd3 {[%clk 0:00:06]}  Kd5 {[%clk 0:00:38]} 64. Ke3 {[%clk 0:00:07]}  Bg5+ {[%clk 0:00:38]} 65. Kf3 {[%clk 0:00:08]}  e4+ {[%clk 0:00:38]} 66. Ke2 {[%clk 0:00:08]}  Ke5 {[%clk 0:00:38]} 67. Kf2 {[%clk 0:00:09]}  Kf4 {[%clk 0:00:38]} 68. Kg2 {[%clk 0:00:10]}  Kxg4 {[%clk 0:00:38]} 69. f6 {[%clk 0:00:10]}  gxf6 {[%clk 0:00:38]} 70. Kh1 {[%clk 0:00:11]}  Kxh5 {[%clk 0:00:39]} 71. Kg2 {[%clk 0:00:12]}  Kg4 {[%clk 0:00:39]} 72. Kf1 {[%clk 0:00:13]}  f5 {[%clk 0:00:40]} 73. Kg2 {[%clk 0:00:14]}  f4 {[%clk 0:00:40]} 74. Kf2 {[%clk 0:00:15]}  f3 {[%clk 0:00:41]} 75. Kf1 {[%clk 0:00:15]}  Bh4 {[%clk 0:00:41]} 76. Kg1 {[%clk 0:00:16]}  Bg3 {[%clk 0:00:41]} 77. Kf1 {[%clk 0:00:17]}  e3 {[%clk 0:00:42]} 78. Kg1 {[%clk 0:00:17]}  e2 {[%clk 0:00:42]} 79. Kh1 {[%clk 0:00:18]}  e1=R# {[%clk 0:00:41]} 0-1


[Site "https://www.chess.com"]

[Event "Titled Tuesday Blitz May 9 Late 2023"]
[White "mjelcic"]
[Black "Ozates, Tuna"]
[BlackFideId "6354521"]
[WhiteElo "2229"]
[BlackElo "2151"]
[Result "0-1"]
[Round "04"]
[TimeControl "180+2"]
[Date "2023.05.09"]
[WhiteClock "0:00:18"]
[BlackClock "0:01:15"]

1. c4 {[%clk 0:03:00]}  c5 {[%clk 0:02:59]} 2. g3 {[%clk 0:03:00]}  Nc6 {[%clk 0:03:00]} 3. Bg2 {[%clk 0:03:00]}  g6 {[%clk 0:03:00]} 4. Nc3 {[%clk 0:03:00]}  Bg7 {[%clk 0:03:01]} 5. e4 {[%clk 0:03:00]}  d6 {[%clk 0:03:01]} 6. Nge2 {[%clk 0:03:00]}  e5 {[%clk 0:03:01]} 7. O-O {[%clk 0:03:00]}  Be6 {[%clk 0:03:00]} 8. d3 {[%clk 0:03:00]}  Nge7 {[%clk 0:03:01]} 9. Be3 {[%clk 0:03:00]}  O-O {[%clk 0:03:00]} 10. Qd2 {[%clk 0:03:01]}  Qd7 {[%clk 0:02:59]} 11. f4 {[%clk 0:03:00]}  f5 {[%clk 0:02:57]} 12. Nd5 {[%clk 0:02:57]}  Rae8 {[%clk 0:02:51]} 13. Rae1 {[%clk 0:02:56]}  Nd4 {[%clk 0:02:44]} 14. b3 {[%clk 0:02:56]}  Nec6 {[%clk 0:02:44]} 15. Nec3 {[%clk 0:02:55]}  fxe4 {[%clk 0:02:37]} 16. dxe4 {[%clk 0:02:46]}  exf4 {[%clk 0:02:36]} 17. gxf4 {[%clk 0:02:42]}  Bh3 {[%clk 0:02:35]} 18. Qf2 {[%clk 0:02:27]}  Bxg2 {[%clk 0:02:34]} 19. Qxg2 {[%clk 0:02:25]}  Nb4 {[%clk 0:02:34]} 20. Nxb4 {[%clk 0:02:18]}  cxb4 {[%clk 0:02:35]} 21. Nd5 {[%clk 0:02:16]}  a5 {[%clk 0:02:34]} 22. Kh1 {[%clk 0:02:13]}  Ne6 {[%clk 0:02:25]} 23. Bg1 {[%clk 0:02:07]}  Nc5 {[%clk 0:02:25]} 24. Bxc5 {[%clk 0:01:58]}  dxc5 {[%clk 0:02:25]} 25. e5 {[%clk 0:01:58]}  Kh8 {[%clk 0:02:24]} 26. Rd1 {[%clk 0:01:57]}  Qf5 {[%clk 0:02:16]} 27. Qf2 {[%clk 0:01:52]}  Bxe5 {[%clk 0:02:15]} 28. Qxc5 {[%clk 0:01:21]}  Qe4+ {[%clk 0:02:06]} 29. Kg1 {[%clk 0:01:21]}  Bg7 {[%clk 0:01:55]} 30. Rfe1 {[%clk 0:01:03]}  Bd4+ {[%clk 0:01:50]} 31. Qxd4+ {[%clk 0:01:00]}  Qxd4+ {[%clk 0:01:50]} 32. Rxd4 {[%clk 0:01:00]}  Rxe1+ {[%clk 0:01:51]} 33. Kf2 {[%clk 0:00:57]}  Ra1 {[%clk 0:01:49]} 34. Rd2 {[%clk 0:00:57]}  g5 {[%clk 0:01:48]} 35. Kg3 {[%clk 0:00:51]}  gxf4+ {[%clk 0:01:41]} 36. Nxf4 {[%clk 0:00:52]}  Rf1 {[%clk 0:01:36]} 37. Rd4 {[%clk 0:00:48]}  Rg8+ {[%clk 0:01:33]} 38. Kh3 {[%clk 0:00:46]}  Rf3+ {[%clk 0:01:32]} 39. Kh4 {[%clk 0:00:46]}  Rf2 {[%clk 0:01:33]} 40. Kh3 {[%clk 0:00:45]}  Rxa2 {[%clk 0:01:32]} 41. Rd7 {[%clk 0:00:43]}  Ra3 {[%clk 0:01:31]} 42. Rxb7 {[%clk 0:00:34]}  Rxb3+ {[%clk 0:01:31]} 43. Kh4 {[%clk 0:00:35]}  Rb2 {[%clk 0:01:28]} 44. h3 {[%clk 0:00:34]}  Rc2 {[%clk 0:01:28]} 45. Rc7 {[%clk 0:00:34]}  b3 {[%clk 0:01:28]} 46. Nd5 {[%clk 0:00:33]}  b2 {[%clk 0:01:26]} 47. Nf6 {[%clk 0:00:33]}  Rxc4+ {[%clk 0:01:26]} 48. Rxc4 {[%clk 0:00:29]}  b1=Q {[%clk 0:01:26]} 49. Nxg8 {[%clk 0:00:29]}  Kxg8 {[%clk 0:01:15]} 50. Rg4+ {[%clk 0:00:28]}  Kf7 {[%clk 0:01:15]} 51. Rg5 {[%clk 0:00:29]}  a4 {[%clk 0:01:15]} 52. Rg4 {[%clk 0:00:18]}  a3 {[%clk 0:01:15]} 0-1


[Site "https://www.chess.com"]

[Event "Titled Tuesday Blitz May 9 Late 2023"]
[White "Horokoskii"]
[Black "Howell, David W L"]
[BlackFideId "410608"]
[WhiteElo "2107"]
[BlackElo "2567"]
[Result "0-1"]
[Round "04"]
[TimeControl "180+2"]
[Date "2023.05.09"]
[WhiteClock "0:01:13"]
[BlackClock "0:01:02"]

1. d4 {[%clk 0:02:50]}  Nf6 {[%clk 0:02:41]} 2. c4 {[%clk 0:02:45]}  g6 {[%clk 0:02:36]} 3. Nc3 {[%clk 0:02:45]}  Bg7 {[%clk 0:02:29]} 4. e4 {[%clk 0:02:42]}  O-O {[%clk 0:02:29]} 5. Be2 {[%clk 0:02:42]}  d6 {[%clk 0:02:27]} 6. Bg5 {[%clk 0:02:41]}  c5 {[%clk 0:02:18]} 7. d5 {[%clk 0:02:40]}  e6 {[%clk 0:02:12]} 8. h4 {[%clk 0:02:32]}  exd5 {[%clk 0:02:07]} 9. exd5 {[%clk 0:02:23]}  h6 {[%clk 0:02:05]} 10. Be3 {[%clk 0:02:20]}  Re8 {[%clk 0:02:05]} 11. h5 {[%clk 0:02:17]}  g5 {[%clk 0:02:03]} 12. Nf3 {[%clk 0:02:13]}  Ng4 {[%clk 0:01:56]} 13. Bd2 {[%clk 0:02:08]}  Qe7 {[%clk 0:01:55]} 14. Ng1 {[%clk 0:01:59]}  Bf5 {[%clk 0:01:38]} 15. Rh3 {[%clk 0:01:50]}  Nd7 {[%clk 0:01:32]} 16. Kf1 {[%clk 0:01:41]}  Nde5 {[%clk 0:01:18]} 17. Nf3 {[%clk 0:01:30]}  Nxf3 {[%clk 0:01:07]} 18. Rxf3 {[%clk 0:01:31]}  Nh2+ {[%clk 0:01:07]} 19. Kg1 {[%clk 0:01:25]}  Nxf3+ {[%clk 0:01:08]} 20. Bxf3 {[%clk 0:01:26]}  Bd4 {[%clk 0:01:03]} 21. Rb1 {[%clk 0:01:13]}  Bxb1 {[%clk 0:01:02]} 0-1


[Site "https://www.chess.com"]